bitfinex/quotes_ETHUSD_20250106
["timestamp","ask_amount","ask_price","bid_price","bid_amount"]
[1736128092283,1.32307237,3632.3,3631.7,0.7673]
[1736128092483,1.32307237,3632.3,3631.8,0.04357674]
[1736128092789,1.32307237,3632.3,3631.7,0.7673]
[1736128093007,0.121,3632.2,3631.9,0.04356288]
[1736128093314,0.121,3632.2,3631.7,0.7673]
[1736128093616,0.121,3632.2,3631.8,0.04357674]
[1736128094115,0.121,3632.2,3631.9,0.04356288]
[1736128094318,0.121,3632.2,3631.7,0.7673]
[1736128094474,0.121,3632.2,3631.8,0.04357674]
[1736128094673,0.121,3632.2,3631.7,0.7673]
[1736128094885,1.27292607,3632.2,3631.8,0.04357176]
[1736128095173,2.06352607,3632.2,3631.7,0.7673]
[1736128095397,2.06352607,3632.2,3631.9,0.0435579]
[1736128095603,2.06352607,3632.2,3631.8,0.04357176]
[1736128095798,2.06352607,3632.2,3631.7,0.7673]
[1736128096134,2.47797,3632.0,3631.8,0.99814693]
[1736128096833,3.62989607,3632.0,3631.8,0.04357176]
[1736128097244,3.62989607,3632.0,3631.5,1.15396202]
[1736128097396,3.62989607,3632.0,3631.9,0.0435579]
[1736128097711,4.44181012,3632.0,3631.9,0.0435579]
[1736128097939,4.44181012,3632.0,3631.5,1.15396202]
[1736128098095,1.15192607,3631.9,3631.4,1.15396202]
[1736128099226,1.15192607,3631.9,3631.5,2.38673348]
[1736128100879,3.62989607,3632.0,3631.6,0.95469339]
[1736128102082,3.62989607,3632.0,3631.4,1.15396202]
[1736128103127,3.62989607,3632.0,3631.5,2.38707048]
[1736128103943,1.15192607,3632.0,3631.5,2.38707048]
[1736128104156,1.15192607,3632.0,3631.6,0.95482819]
[1736128105554,1.15192607,3632.0,3631.4,1.15396202]
[1736128106922,1.15192607,3632.0,3631.5,2.38692365]
[1736128108025,1.15192607,3632.0,3631.6,0.95476946]
[1736128109189,1.15192607,3632.0,3631.7,0.04362052]
[1736128109720,1.15192607,3632.0,3631.4,1.15396202]
[1736128109931,1.15192607,3632.0,3631.5,0.04364824]
[1736128110427,1.20207237,3631.7,3631.5,0.04364824]
[1736128111700,2.35399844,3631.7,3631.5,0.04364824]
[1736128111899,1.15192607,3631.7,3631.1,0.8195]
[1736128112095,1.15192607,3631.7,3631.2,0.04368984]
[1736128113333,1.15192607,3631.7,3631.2,2.43020192]
[1736128114079,2.35399844,3631.7,3631.2,2.43020192]
[1736128114210,3.31613398,3631.7,3631.2,2.43020192]
[1736128114410,1.20207237,3631.5,3631.2,0.04368984]
[1736128114835,0.7595,3631.2,3631.0,1.15396202]
[1736128115711,0.7595,3631.2,3630.7,1.15396202]
[1736128116498,0.7595,3631.2,3630.5,1.15396202]
[1736128116716,0.121,3631.3,3630.6,0.8202]
[1736128117225,0.121,3631.3,3630.6,3.2991]
[1736128117641,0.121,3631.3,3630.7,0.8202]
[1736128118849,0.121,3631.3,3630.8,2.38456945]
[1736128119747,0.121,3631.3,3630.9,0.95382778]
[1736128120149,0.8911,3631.7,3631.0,0.8202]
[1736128120376,1.15192607,3631.8,3631.1,1.20207237]
[1736128120533,1.15192607,3631.8,3631.2,0.55]
[1736128121013,1.15192607,3631.9,3631.2,0.55]
[1736128122454,0.7701,3632.0,3631.3,2.38298517]
[1736128123332,0.7701,3632.0,3631.4,0.95319407]
[1736128124023,0.7701,3632.0,3631.5,0.04277837]
[1736128125057,0.7701,3632.0,3631.2,1.70396202]
[1736128125354,0.7701,3632.0,3631.3,0.67362588]
[1736128125519,0.7701,3632.0,3631.4,0.04255298]
[1736128126259,1.20207237,3632.1,3631.5,0.7675]
[1736128126627,1.20207237,3632.1,3631.6,0.04253024]
[1736128126825,1.20207237,3632.1,3631.5,0.7675]
[1736128127049,1.20207237,3632.1,3631.7,0.04251637]
[1736128127246,1.20207237,3632.1,3631.5,0.7675]
[1736128127433,1.20207237,3632.1,3631.8,0.04250251]
[1736128127640,1.20207237,3632.1,3631.5,0.7675]
[1736128127834,1.20207237,3632.1,3631.9,0.04248865]
[1736128128039,1.20207237,3632.1,3631.5,0.7675]
[1736128128363,1.27292607,3632.2,3631.6,0.04253024]
[1736128129323,2.47499844,3632.2,3631.6,0.04253024]
[1736128130725,1.32307237,3632.2,3631.6,0.04253024]
[1736128131968,2.47499844,3632.2,3631.6,0.04253024]
[1736128136516,2.47499844,3632.2,3631.5,1.02021103]
[1736128136811,1.32307237,3632.2,3631.6,0.60089785]
[1736128137590,1.32307237,3632.2,3631.6,0.04074369]
[1736128137994,1.20207237,3632.0,3631.6,0.04074369]
[1736128138729,1.20207237,3632.0,3631.5,0.70570224]
[1736128139024,1.20207237,3632.0,3631.6,0.04074369]
[1736128139391,1.20207237,3632.0,3631.5,0.70570224]
[1736128139571,1.20207237,3632.0,3631.7,0.04072983]
[1736128139773,1.20207237,3632.0,3631.5,1.08953925]
[1736128140033,1.20207237,3632.0,3631.8,0.04071597]
[1736128140326,1.20207237,3632.0,3631.5,0.70570224]
[1736128140509,2.47797,3632.0,3631.9,0.04070211]
[1736128140714,2.47816,3631.8,3631.3,1.15396202]
[1736128140926,0.7826,3631.9,3631.3,1.15396202]
[1736128141072,1.96762607,3632.3,3631.7,1.20207237]
[1736128141389,1.15192607,3632.3,3631.8,0.82676579]
[1736128141709,1.15192607,3632.0,3631.8,0.82676579]
[1736128142979,3.01022287,3632.5,3631.8,0.82676579]
[1736128142980,0.121,3632.5,3631.8,0.82676579]
[1736128143311,1.32307237,3632.5,3631.8,0.82676579]
[1736128144321,1.20207237,3632.5,3631.8,0.82676579]
[1736128144525,1.32307237,3632.5,3631.8,0.82676579]
[1736128144986,1.32307237,3632.5,3631.8,28.23606579]
[1736128146324,1.32307237,3632.5,3631.8,31.08966203]
[1736128148613,1.20207237,3632.3,3631.8,28.23606579]
[1736128148812,1.20207237,3631.9,3631.8,27.45006579]
[1736128149032,4.44031237,3631.9,3631.8,27.45006579]
[1736128149927,3.67997237,3632.1,3631.8,27.45006579]
[1736128150093,1.20207237,3632.1,3631.8,27.45006579]
[1736128150293,4.44004237,3632.3,3631.8,27.45006579]
[1736128150826,1.15192607,3632.0,3631.8,27.45006579]
[1736128151924,3.67998237,3632.1,3631.8,27.45006579]
[1736128152422,1.20207237,3631.9,3631.8,27.45006579]
[1736128152625,1.95837237,3631.9,3631.8,27.45006579]
[1736128152997,0.121,3631.9,3631.8,27.45006579]
[1736128153929,0.11768567,3631.9,3631.8,27.45006579]
[1736128156615,3.79779804,3631.9,3631.8,27.45006579]
[1736128157799,3.79779804,3631.9,3631.8,27.4093]
[1736128158338,3.79779804,3631.9,3631.8,27.45017545]
[1736128158638,4.57349804,3631.9,3631.8,27.45017545]
[1736128165246,5.72542411,3631.9,3631.8,27.45017545]
[1736128165948,5.72542411,3631.9,3631.8,27.4093]
[1736128166248,5.72542411,3631.9,3631.8,27.45017545]
[1736128167948,4.94972411,3631.9,3631.8,27.45017545]
[1736128170048,1.26961174,3631.9,3631.8,27.45017545]
[1736128171516,0.11768567,3631.9,3631.8,27.45017545]
[1736128171738,1.31975804,3631.9,3631.8,27.45017545]
[1736128182963,0.11768567,3631.9,3631.8,27.45017545]
[1736128183535,3.62990607,3632.0,3631.8,27.45017545]
[1736128184557,1.15192607,3632.0,3631.8,27.45017545]
[1736128184762,2.47499844,3632.1,3631.8,27.45017545]
[1736128185827,1.15192607,3632.1,3631.9,0.7814]
[1736128186353,1.15192607,3632.1,3632.0,0.04109197]
[1736128187646,2.28567264,3632.4,3632.0,0.04109197]
[1736128187647,1.27292607,3632.4,3632.0,0.04109197]
[1736128187966,1.20207237,3632.3,3632.0,0.04109197]
[1736128191145,3.67984237,3632.3,3632.0,0.04109197]
[1736128191374,1.20207237,3632.1,3632.0,0.04109197]
[1736128191841,1.20207237,3632.1,3631.8,27.4093]
[1736128192030,1.20207237,3632.1,3632.0,0.04097734]
[1736128192231,1.20207237,3632.1,3631.9,0.0409912]
[1736128192427,1.20207237,3632.1,3632.0,0.04097734]
[1736128192845,1.20207237,3632.1,3631.8,27.4093]
[1736128193046,1.20207237,3632.1,3632.0,0.04097734]
[1736128193248,1.20207237,3632.1,3631.9,0.0409912]
[1736128193460,3.68000237,3632.1,3632.0,0.04097734]
[1736128193933,1.20207237,3632.1,3631.8,27.4093]
[1736128194273,2.47797,3632.0,3631.9,0.0409912]
[1736128195533,3.62989607,3632.0,3631.9,0.0409912]
[1736128196271,1.15192607,3632.0,3631.9,0.0409912]
[1736128196466,1.15192607,3632.0,3631.9,0.8624912]
[1736128196876,1.20207237,3632.1,3631.9,0.8624912]
[1736128196877,2.35399844,3632.1,3631.9,0.8624912]
[1736128197354,4.83191844,3632.1,3631.9,0.0409912]
[1736128200692,3.25367,3632.0,3631.9,0.0409912]
[1736128201256,3.25367,3632.0,3631.9,1.2e-06]
[1736128201462,6.29904,3631.9,3631.8,27.4093]
[1736128201665,7.50111237,3631.9,3631.8,27.4093]
[1736128201887,7.50111237,3631.9,3631.8,27.44896363]
[1736128202202,8.83226981,3631.9,3631.8,27.44896363]
[1736128203298,11.72149268,3631.9,3631.8,27.44896363]
[1736128204439,11.72149268,3631.9,3631.8,20.56531363]
[1736128204733,11.72149268,3631.9,3631.8,13.68166363]
[1736128206004,14.26255019,3631.9,3631.8,13.68166363]
[1736128206904,14.26255019,3631.9,3631.8,12.30493363]
[1736128207566,10.79548275,3631.9,3631.8,10.92820363]
[1736128207841,10.79548275,3631.9,3631.8,8.17474363]
[1736128208529,8.83226981,3631.9,3631.8,8.17474363]
[1736128208730,8.83226981,3631.9,3631.8,5.42128363]
[1736128208931,15.03434218,3631.9,3631.8,0.25795467]
[1736128209140,13.77438218,3631.9,3631.8,0.25795467]
[1736128209467,13.77438218,3631.9,3631.8,0.21829104]
[1736128209754,12.57230981,3631.9,3631.8,1.04e-06]
[1736128210051,8.83226981,3631.9,3631.8,1.04e-06]
[1736128210928,14.26020122,3631.9,3631.8,1.04e-06]
[1736128212158,10.79313378,3631.9,3631.8,1.04e-06]
[1736128213259,8.83226981,3631.9,3631.8,1.04e-06]
[1736128216426,11.06474981,3631.9,3631.8,1.04e-06]
[1736128216666,10.85816981,3631.9,3631.8,1.04e-06]
[1736128217866,8.83226981,3631.9,3631.8,1.04e-06]
[1736128220031,11.71333103,3631.9,3631.8,1.04e-06]
[1736128220869,13.71865103,3631.9,3631.8,1.04e-06]
[1736128221841,11.71333103,3631.9,3631.8,1.04e-06]
[1736128226708,10.51125866,3631.9,3631.8,1.04e-06]
[1736128226886,9.68217359,3631.9,3631.8,1.04e-06]
[1736128227092,9.56117359,3631.9,3631.8,1.04e-06]
[1736128227295,9.68217359,3631.9,3631.8,1.04e-06]
[1736128228296,5.40792462,3631.9,3631.8,0.75000104]
[1736128228605,5.52892462,3631.9,3631.8,0.75000104]
[1736128229105,4.20585225,3631.9,3631.8,0.75000104]
[1736128229284,3.05088462,3631.9,3631.8,0.75000104]
[1736128229689,1.32307237,3631.9,3631.8,0.75000104]
[1736128229888,1.20207237,3631.9,3631.8,0.75000104]
[1736128230120,1.15181947,3632.0,3631.8,0.75000104]
[1736128230280,1.15181947,3632.0,3631.9,0.7582]
[1736128230281,1.27281947,3632.0,3631.9,0.7582]
[1736128231297,0.121,3632.0,3631.9,0.7582]
[1736128231495,5.14151105,3632.5,3631.9,0.7582]
[1736128231695,0.121,3632.4,3631.9,0.7582]
[1736128232915,0.121,3632.4,3632.1,0.7858]
[1736128234008,2.6567512,3632.6,3632.1,0.7858]
[1736128234009,0.1791912,3632.6,3632.1,0.7858]
[1736128234326,0.1791912,3632.6,3631.8,1.04e-06]
[1736128234327,0.1791912,3632.6,3632.3,0.7693]
[1736128234717,0.1791912,3632.6,3632.5,0.7693]
[1736128235122,0.1791912,3632.6,3632.5,0.84193245]
[1736128235322,0.1791912,3632.6,3632.5,0.9811257]
[1736128239164,0.1791912,3632.6,3632.5,1.5311257]
[1736128241563,0.1791912,3632.6,3632.5,4.0087557]
[1736128243363,0.01,3633.4,3632.9,0.7682]
[1736128243662,0.01,3633.4,3633.1,0.7682]
[1736128244065,0.01,3633.4,3633.2,0.55]
[1736128244233,0.01,3633.4,3633.2,0.62173319]
[1736128244434,0.01,3633.4,3633.3,3.79528]
[1736128244635,0.01,3633.4,3633.3,3.86699838]
[1736128244827,0.01,3633.4,3633.3,4.57917893]
[1736128245763,0.01,3633.4,3633.3,2.10209893]
[1736128251174,0.01,3633.4,3633.3,4.02917893]
[1736128253961,0.01,3633.4,3633.3,10.24303998]
[1736128256613,0.871,3634.9,3633.6,2.47682]
[1736128256833,3.34701,3634.9,3633.9,0.55]
[1736128257037,3.34701,3634.9,3634.0,0.07083949]
[1736128257346,2.47606,3634.8,3634.0,0.07083949]
[1736128257707,2.47606,3634.8,3633.8,0.7698]
[1736128257919,2.47606,3634.8,3634.1,0.0708247]
[1736128258119,0.60109211,3634.8,3633.8,0.7698]
[1736128258319,2.47614,3634.7,3633.8,0.7698]
[1736128258608,2.47614,3634.7,3633.9,0.07038762]
[1736128258808,0.768,3634.3,3633.9,0.07038762]
[1736128259073,0.768,3634.3,3633.1,0.7938]
[1736128259429,0.768,3634.3,3633.2,0.06955019]
[1736128260007,2.47661,3634.0,3633.2,0.06955019]
[1736128260527,3.24446,3634.3,3633.2,0.06955019]
[1736128260709,3.24446,3634.3,3633.4,0.7881]
[1736128261144,3.24446,3634.3,3633.5,0.0697497]
[1736128261331,0.768,3634.3,3633.5,0.0697497]
[1736128261531,0.826,3633.9,3633.5,0.0697497]
[1736128261842,2.47682,3633.7,3633.5,0.0697497]
[1736128262040,2.47682,3633.7,3633.1,0.7939]
[1736128262409,2.47682,3633.7,3633.2,0.06295777]
[1736128263936,2.4500738,3633.7,3633.2,0.06295777]
[1736128264956,0.32760738,3633.7,3633.2,0.06295777]
[1736128265159,3.23348,3633.3,3633.2,0.06295777]
[1736128265457,0.12,3633.6,3632.7,0.55]
[1736128265958,0.12,3633.6,3632.8,0.06095531]
[1736128266275,0.12,3633.6,3632.7,0.55]
[1736128266419,0.12,3633.6,3632.9,0.7508]
[1736128266617,0.12,3633.9,3633.0,0.0609257]
[1736128266816,0.12,3633.9,3633.1,0.7508]
[1736128267042,0.12,3633.9,3633.2,0.0608961]
[1736128269468,2.59668,3633.9,3633.2,0.0608961]
[1736128269875,2.47668,3633.9,3633.2,0.0608961]
[1736128270032,0.774,3634.1,3633.2,0.0608961]
[1736128270033,2.47661,3634.0,3633.2,0.0608961]
[1736128270227,2.47675,3633.8,3633.2,0.0608961]
[1736128271860,0.337061,3633.9,3633.2,0.0608961]
[1736128272478,2.813741,3633.9,3633.2,0.0608961]
[1736128273748,0.337061,3633.9,3633.2,0.0608961]
[1736128274075,3.37054,3634.1,3633.2,0.0608961]
[1736128274664,3.37054,3634.1,3633.3,0.7621]
[1736128274862,3.37054,3634.1,3633.4,0.06135937]
[1736128276168,2.47662,3634.0,3633.4,0.06135937]
[1736128279738,0.894,3634.1,3633.4,0.06135937]
[1736128280745,3.37057,3634.1,3633.4,0.06135937]
[1736128282632,2.47677,3633.8,3633.4,0.06135937]
[1736128282937,2.47677,3633.8,3633.3,0.7621]
[1736128283150,2.47688,3633.6,3633.5,0.06092165]
[1736128283297,2.47703,3633.4,3632.8,0.8129]
[1736128283657,5.14057105,3633.9,3632.9,0.06101047]
[1736128283658,0.7995,3633.8,3632.9,0.06101047]
[1736128283832,0.46151805,3633.7,3632.9,0.06101047]
[1736128284162,0.7995,3633.8,3633.0,0.8129]
[1736128284314,3.27626,3633.8,3633.0,0.8129]
[1736128284515,3.27626,3633.8,3633.1,0.0611153]
[1736128285037,1.27181947,3633.8,3633.1,0.0611153]
[1736128285412,1.27181947,3633.8,3633.2,0.8129]
[1736128285853,1.27181947,3633.8,3633.3,0.0610857]
[1736128286033,0.12,3633.8,3633.3,0.0610857]
[1736128286573,1.15181947,3634.0,3633.2,0.8129]
[1736128286704,1.15181947,3634.0,3633.3,0.8199]
[1736128286898,1.15181947,3634.0,3633.4,0.0610709]
[1736128287121,0.12,3634.1,3633.4,0.8199]
[1736128287328,0.12,3634.1,3633.5,0.0610561]
[1736128290743,1.27181947,3634.1,3633.5,0.0610561]
[1736128292112,1.15181947,3634.1,3633.5,0.0610561]
[1736128292818,0.12,3634.2,3633.5,0.0610561]
[1736128295947,0.12,3634.2,3633.5,0.39686571]
[1736128296821,0.12,3634.2,3633.5,0.0610561]
[1736128299354,1.27181947,3634.3,3633.6,0.7603]
[1736128299650,1.15181947,3634.3,3633.7,3.80038]
[1736128299954,1.15181947,3634.3,3633.8,0.7736]
[1736128300155,1.15181947,3634.3,3634.0,0.7736]
[1736128300657,1.15181947,3634.3,3634.1,0.06061879]
[1736128301528,0.12,3634.6,3634.1,0.06061879]
[1736128301922,0.11668768,3634.6,3634.1,0.06061879]
[1736128302141,0.11668768,3634.6,3634.0,0.7736]
[1736128302450,0.11668768,3634.6,3634.0,1.19224163]
[1736128302639,0.11668768,3634.6,3634.2,0.8131]
[1736128303959,1.15181947,3634.7,3634.3,0.0605892]
[1736128304432,1.15181947,3634.7,3634.2,0.8131]
[1736128304634,1.15181947,3634.7,3634.4,0.06057441]
[1736128304841,1.15181947,3634.7,3634.3,0.0605892]
[1736128305027,1.15181947,3634.7,3634.5,0.06055962]
[1736128305354,1.15181947,3634.7,3634.4,0.06057441]
[1736128305659,1.15181947,3634.7,3634.2,0.8131]
[1736128305820,1.15181947,3634.7,3634.5,0.06029082]
[1736128306161,1.15181947,3634.7,3634.6,0.06027603]
[1736128306332,1.15181947,3634.9,3634.3,0.328961]
[1736128306537,1.15181947,3634.9,3634.4,0.06005671]
[1736128306947,1.15181947,3634.9,3634.3,0.328961]
[1736128307135,1.15181947,3634.9,3634.4,0.3618571]
[1736128307583,1.15181947,3635.0,3634.4,0.3618571]
[1736128308823,1.15181947,3635.0,3634.5,0.823]
[1736128309024,1.27181947,3635.1,3634.5,0.823]
[1736128310637,1.27181947,3635.2,3634.5,0.823]
[1736128310837,1.27181947,3635.2,3634.7,0.7943]
[1736128311435,1.15181947,3635.2,3634.8,0.05999755]
[1736128311840,0.12,3635.3,3634.8,0.05999755]
[1736128312138,2.59574,3635.3,3634.7,0.7943]
[1736128315262,0.12,3635.3,3634.7,0.7943]
[1736128315438,0.12,3635.3,3634.8,0.05991792]
[1736128316438,2.47567,3635.4,3634.8,0.05991792]
[1736128316439,2.59567,3635.4,3634.8,0.05991792]
[1736128318629,3.21906017,3635.4,3634.8,0.05991792]
[1736128318951,3.21906017,3635.4,3634.7,0.7943]
[1736128321356,0.12,3635.4,3634.7,0.7943]
[1736128322035,0.12,3635.4,3634.8,0.05969899]
[1736128322333,0.12,3635.4,3634.7,0.7943]
[1736128322533,0.12,3635.4,3634.8,0.05969899]
[1736128322766,0.12,3635.4,3634.7,0.7943]
[1736128322929,0.12,3635.4,3634.9,0.05961454]
[1736128323275,0.12,3635.4,3634.7,0.7943]
[1736128323453,2.5956,3635.5,3634.7,0.327061]
[1736128323659,2.5956,3635.5,3634.8,0.82302933]
[1736128324061,2.5956,3635.5,3634.8,0.7634]
[1736128324681,0.12,3635.6,3634.8,0.7634]
[1736128324973,1.15181947,3635.8,3635.0,0.7888]
[1736128325271,1.15181947,3635.8,3635.2,0.7888]
[1736128325479,1.15181947,3635.8,3635.4,0.7888]
[1736128325839,1.15181947,3635.8,3635.5,0.05946611]
[1736128326040,1.15181947,3635.8,3635.6,0.7888]
[1736128326377,1.15181947,3635.8,3635.6,0.84825133]
[1736128327171,0.1791912,3636.2,3635.6,0.84825133]
[1736128328547,0.1791912,3636.2,3635.7,0.33238913]
[1736128328747,0.1791912,3636.2,3635.8,0.0586523]
[1736128328942,0.1791912,3636.2,3635.7,0.33238913]
[1736128329171,0.1791912,3636.2,3635.8,0.0586523]
[1736128329589,0.1791912,3636.2,3635.7,0.33238913]
[1736128329773,0.1791912,3636.2,3635.9,0.05863752]
[1736128329977,0.1791912,3636.2,3636.0,0.7888]
[1736128330181,0.1791912,3636.2,3636.0,0.84742274]
[1736128332138,0.1791912,3636.2,3636.1,0.33227827]
[1736128332338,0.1791912,3636.2,3636.1,1.1848873]
[1736128334781,0.1791912,3636.2,3636.1,0.85260903]
[1736128346970,0.1791912,3636.2,3636.1,3.32777903]
[1736128347694,0.1791912,3636.2,3636.1,0.85260903]
[1736128350864,0.1791912,3636.2,3636.1,3.32777903]
[1736128352010,0.1791912,3636.2,3636.1,0.05840903]
[1736128352215,0.1791912,3636.2,3636.1,1.19897093]
[1736128352368,0.1791912,3636.2,3636.1,1.4525671]
[1736128352569,0.1791912,3636.2,3636.1,2.0025671]
[1736128352869,0.1791912,3636.2,3636.1,5.2401371]
[1736128356100,0.1791912,3636.2,3636.1,8.2401371]
[1736128357581,0.1791912,3636.2,3636.1,6.49116617]
[1736128357798,0.1791912,3636.2,3636.1,7.6901371]
[1736128358110,0.1791912,3636.2,3636.1,8.2401371]
[1736128360424,0.1791912,3636.2,3636.1,5.2149671]
[1736128361382,0.1791912,3636.2,3636.1,7.6901371]
[1736128361796,0.1791912,3636.2,3636.1,8.2401371]
[1736128362909,0.02407523,3636.2,3636.1,8.2401371]
[1736128363612,5.23e-06,3636.2,3636.1,8.2401371]
[1736128363806,0.8269,3637.6,3637.0,2.47452]
[1736128363986,0.8269,3637.6,3637.1,2.27152293]
[1736128364174,0.8269,3637.6,3637.2,0.05704505]
[1736128364806,1.27181947,3638.0,3637.2,0.05704505]
[1736128364807,0.8269,3637.9,3637.2,0.05704505]
[1736128366022,0.794,3638.2,3637.4,0.7986]
[1736128366197,1.16181947,3638.4,3637.6,2.47413]
[1736128366198,1.95581947,3638.4,3637.6,2.47413]
[1736128366878,1.95581947,3638.4,3637.7,0.05660003]
[1736128367078,1.95581947,3638.4,3637.7,0.38953303]
[1736128367409,1.95581947,3638.4,3638.1,2.47381]
[1736128367410,0.01,3638.4,3638.1,2.47381]
[1736128367714,0.01,3638.4,3638.1,3.55]
[1736128368010,0.01,3638.4,3638.2,2.53012207]
[1736128368216,0.01,3638.4,3638.3,0.87352734]
[1736128368706,0.01,3638.4,3638.3,0.056119]
[1736128369115,0.01,3638.4,3637.9,3.8254]
[1736128369297,0.01,3638.4,3638.3,0.0557232]
[1736128369645,0.01,3638.4,3638.3,0.05549476]
[1736128369919,0.01,3638.4,3637.7,0.8254]
[1736128370075,0.01,3638.4,3638.3,0.05549476]
[1736128370276,0.01,3638.4,3637.9,0.55]
[1736128370511,0.01,3638.4,3638.3,1.39463074]
[1736128370808,1.15181947,3639.5,3639.4,2.47292]
[1736128371013,1.15181947,3639.5,3639.4,8.67807129]
[1736128371186,1.15181947,3639.5,3639.4,9.59935677]
[1736128371384,1.72e-06,3639.6,3639.5,3.55]
[1736128371585,0.93005232,3639.8,3639.6,6.85589]
[1736128371908,3.52e-06,3639.9,3639.8,6.85576]
[1736128372446,0.13300474,3640.0,3639.9,1.3831]
[1736128372614,2.18e-06,3640.3,3640.2,3.30549]
[1736128372917,0.4,3641.0,3640.9,3.85501]
[1736128373079,0.4,3641.0,3640.9,9.51016129]
[1736128373275,2.29329703,3642.0,3641.9,6.22533]
[1736128373499,2.19329703,3642.0,3641.9,8.88048129]
[1736128373698,5.87883957,3643.6,3641.9,0.05062385]
[1736128373699,3.42355129,3643.1,3641.9,0.05062385]
[1736128374112,0.7684,3642.6,3641.7,0.55]
[1736128374335,0.13934,3642.5,3642.0,0.05059425]
[1736128374535,0.13934,3642.5,3641.7,0.55]
[1736128374837,0.7684,3642.6,3641.6,0.55]
[1736128375016,0.7684,3642.6,3641.9,0.55]
[1736128375412,0.12,3643.1,3642.1,0.55]
[1736128375413,0.7724,3643.1,3642.1,0.55]
[1736128375726,2.48026,3643.4,3642.6,2.65515129]
[1736128375727,0.01,3643.4,3642.6,2.65515129]
[1736128375925,0.01,3643.4,3642.6,6.96985129]
[1736128376254,0.01,3643.4,3643.3,3.78498]
[1736128376459,0.01,3643.4,3643.3,6.44013129]
[1736128376675,0.01,3643.4,3643.3,9.73855276]
[1736128376809,0.01,3643.4,3643.3,9.48855276]
[1736128377003,0.01,3643.4,3643.3,7.01827276]
[1736128377213,0.01,3643.4,3643.3,7.96714004]
[1736128377608,0.01,3643.4,3643.3,10.29773501]
[1736128377813,0.7678,3645.0,3643.4,3.55]
[1736128378023,2.46928,3644.8,3643.4,3.55]
[1736128378254,2.46928,3644.8,3643.6,0.55]
[1736128378538,2.47869088,3644.7,3643.6,0.55]
[1736128378706,2.47869088,3644.7,3643.8,0.55]
[1736128379104,2.47869088,3644.7,3643.9,0.0464731]
[1736128379308,2.65515129,3644.3,3643.9,0.0464731]
[1736128379538,0.7705,3643.7,3642.8,1.15396202]
[1736128379729,3.24054,3643.7,3642.8,1.15396202]
[1736128379932,2.47009,3643.6,3642.9,0.04662525]
[1736128380129,0.7705,3643.7,3642.9,0.04662525]
[1736128380339,0.12,3643.6,3642.9,0.04662525]
[1736128380641,2.47026,3643.4,3642.2,2.53822736]
[1736128381177,2.47036,3643.2,3642.3,0.04707495]
[1736128381471,0.35456513,3643.5,3642.3,2.70222624]
[1736128381614,0.7705,3643.7,3642.4,1.3233]
[1736128381814,0.7705,3643.7,3642.4,4.3233]
[1736128382010,0.12,3644.1,3642.6,3.20515129]
[1736128382551,0.12,3644.1,3642.8,0.55]
[1736128382552,2.46984,3644.0,3642.8,0.55]
[1736128382880,0.7877,3644.2,3643.2,0.55]
[1736128383002,2.4692,3644.9,3643.9,0.55]
[1736128383210,0.32296,3644.9,3644.1,0.55]
[1736128383427,3.39807,3645.4,3644.3,0.55]
[1736128383629,0.8092,3645.4,3644.3,0.55]
[1736128383807,3.2781,3645.4,3644.3,0.55]
[1736128384021,3.2781,3645.4,3644.4,0.04703735]
[1736128384219,0.8092,3645.4,3644.5,0.55]
[1736128384611,3.27779,3645.7,3644.3,3.55]
[1736128384825,0.339779,3645.6,3644.7,0.55]
[1736128385050,0.8091,3645.7,3644.7,0.55]
[1736128385250,0.8091,3645.7,3644.9,0.55]
[1736128385456,0.12,3646.0,3644.9,0.55]
[1736128385658,2.46862,3645.8,3645.0,0.04665715]
[1736128385855,2.727482,3645.8,3644.5,0.55]
[1736128386382,2.46848,3646.0,3644.7,0.55]
[1736128386689,0.00274,3646.3,3644.7,0.55]
[1736128386690,2.46834,3646.2,3644.9,0.55]
[1736128387095,3.12399615,3645.6,3645.0,0.04379379]
[1736128387252,2.46874,3645.6,3645.0,0.04379379]
[1736128387590,0.12,3646.6,3644.6,0.813]
[1736128387730,2.46833,3646.2,3644.7,0.55]
[1736128388059,2.46833,3646.2,3644.9,0.55]
[1736128388261,0.1791912,3647.2,3645.0,0.813]
[1736128388454,0.1791912,3647.2,3645.9,0.55]
[1736128388627,2.6468512,3647.2,3645.9,0.55]
[1736128388829,0.1791912,3647.2,3646.1,0.813]
[1736128389032,0.1791912,3647.2,3646.2,0.55]
[1736128389390,0.1791912,3647.2,3646.2,0.59343811]
[1736128389866,0.1791912,3647.2,3646.4,0.55]
[1736128390025,0.1791912,3647.2,3646.6,0.55]
[1736128390229,0.1791912,3647.2,3646.8,0.55]
[1736128390553,0.1791912,3647.2,3646.7,0.49188305]
[1736128390736,0.1791912,3647.2,3646.9,0.04315405]
[1736128390929,0.1791912,3647.2,3646.8,0.04316874]
[1736128391125,0.1791912,3647.2,3647.1,0.55]
[1736128391559,0.1791912,3647.2,3647.1,0.04312467]
[1736128391862,0.1791912,3647.2,3646.6,2.46804]
[1736128391863,0.1791912,3647.2,3646.9,0.55]
[1736128392168,0.006169,3648.4,3647.1,1.38092467]
[1736128392379,0.006169,3648.4,3647.2,0.13809247]
[1736128392678,0.006169,3648.4,3647.3,0.55]
[1736128392890,2.46679,3648.5,3647.3,0.55]
[1736128392891,1.98845263,3648.5,3647.3,0.55]
[1736128393095,1.98845263,3648.5,3647.4,0.04308061]
[1736128393305,2.4663,3649.2,3647.6,0.7878]
[1736128393483,2.71543,3650.5,3647.5,3.0]
[1736128393484,3.12399615,3650.6,3648.3,0.55]
[1736128393780,0.793,3650.4,3648.9,3.01645]
[1736128393967,0.1791912,3650.9,3649.1,5.46634]
[1736128394168,0.1314788,3650.6,3649.3,4.3378]
[1736128394482,0.1314788,3650.6,3649.3,1.3793558]
[1736128394792,2.46567,3650.2,3649.3,1.3793558]
[1736128395083,5.46542,3650.5,3649.3,0.8293558]
[1736128395381,2.5968688,3650.6,3649.3,0.8293558]
[1736128395677,0.1314788,3650.6,3649.4,0.55]
[1736128395882,0.1314788,3650.6,3650.0,3.12399615]
[1736128396097,0.1314788,3650.6,3650.1,4.15092961]
[1736128396303,0.1314788,3650.6,3650.4,0.7679]
[1736128396506,0.1314788,3650.6,3650.5,0.55]
[1736128396670,0.1314788,3650.6,3650.5,0.58804606]
[1736128397399,0.00273,3652.1,3650.9,0.55]